bitfinex/quotes_BTCUSD_20220304
["timestamp","ask_amount","ask_price","bid_price","bid_amount"]
[1646400990341,0.1,41475.0,41463.0,0.3618268]
[1646400990541,0.1,41475.0,41461.0,0.01233379]
[1646400991139,0.1,41481.0,41461.0,0.01233379]
[1646400991345,0.00400231,41488.0,41479.0,0.26298201]
[1646400991551,0.01,41493.0,41480.0,0.33954654]
[1646400991746,0.01,41493.0,41471.0,0.05390875]
[1646400991747,0.08940111,41471.0,41465.0,0.42963471]
[1646400991996,0.005,41493.0,41465.0,0.42963471]
[1646400991997,0.005,41493.0,41470.0,0.15]
[1646400992196,0.005,41493.0,41474.0,0.05]
[1646400992396,0.005,41493.0,41484.0,0.26875968]
[1646400992595,0.02412749,41489.0,41476.0,0.01414696]
[1646400992795,0.065305,41493.0,41475.0,0.08118292]
[1646400992994,0.065305,41493.0,41481.0,0.06031]
[1646400993196,0.02410336,41489.0,41483.0,0.01299562]
[1646400993393,0.065305,41493.0,41483.0,0.01299562]
[1646400993394,0.02410336,41485.0,41483.0,0.01299562]
[1646400993594,0.065305,41493.0,41483.0,0.01299562]
[1646400993595,0.02410336,41484.0,41483.0,0.01299562]
[1646400993795,0.02410336,41484.0,41474.0,0.417898]
[1646400993796,7.3526634,41475.0,41474.0,0.417898]
[1646400993995,0.065305,41493.0,41475.0,1.3]
[1646400993996,0.005,41493.0,41475.0,1.3]
[1646400994208,0.005,41493.0,41490.0,0.06728763]
[1646400994211,0.0001,41493.0,41490.0,0.06728763]
[1646400994397,0.2499,41511.0,41492.0,0.01538919]
[1646400994600,0.2499,41511.0,41498.0,0.367898]
[1646400994797,0.2499,41511.0,41500.0,0.02248231]
[1646400994995,0.0011,41512.0,41501.0,0.05]
[1646400995195,0.0011,41512.0,41501.0,0.06133515]
[1646400995634,0.0011,41512.0,41507.0,0.01305434]
[1646400995834,0.0011,41512.0,41508.0,0.0103977]
[1646400996035,0.0011,41512.0,41499.0,0.1165]
[1646400996036,0.01655515,41507.0,41499.0,0.1165]
[1646400996234,0.01655515,41507.0,41497.0,0.01157116]
[1646400996435,0.35857565,41507.0,41497.0,0.02534168]
[1646400996633,0.28887141,41497.0,41492.0,0.024442]
[1646400996839,0.52360221,41496.0,41493.0,0.01158469]
[1646400997033,0.18537729,41496.0,41493.0,0.01158469]
[1646400997433,0.35478007,41507.0,41493.0,0.01158469]
[1646400997434,0.60468007,41507.0,41493.0,0.01158469]
[1646400997635,0.26645515,41507.0,41493.0,0.01158469]
[1646400997833,0.26645515,41507.0,41493.0,0.07187569]
[1646400998436,9.0,41497.0,41493.0,0.01158469]
[1646400998633,0.060311,41496.0,41493.0,0.01202907]
[1646400998833,0.060311,41496.0,41487.0,0.01095075]
[1646400999036,0.060311,41496.0,41488.0,0.060307]
[1646400999037,0.22896356,41495.0,41488.0,0.060307]
[1646400999235,0.33822492,41494.0,41489.0,0.01125724]
[1646400999678,0.18494864,41493.0,41489.0,0.01125724]
[1646400999881,0.04936691,41484.0,41472.0,0.01253852]
[1646401000078,0.04936691,41484.0,41476.0,0.30191612]
[1646401000277,0.04936691,41484.0,41480.0,0.060316]
[1646401000478,0.04936691,41484.0,41481.0,0.01473867]
[1646401001079,0.04936691,41484.0,41483.0,0.01329106]
[1646401002680,0.04936691,41484.0,41481.0,0.19562667]
[1646401002881,0.04936691,41484.0,41482.0,0.42]
[1646401003727,0.04936691,41484.0,41482.0,0.43451371]
[1646401004326,0.04936691,41484.0,41483.0,0.01532853]
[1646401004531,9.05,41497.0,41491.0,0.21750067]
[1646401004532,9.0,41497.0,41491.0,0.21750067]
[1646401004728,9.0,41497.0,41492.0,0.01082978]
[1646401005126,8.008269,41497.0,41492.0,0.01082978]
[1646401005330,8.008269,41497.0,41493.0,0.67278806]
[1646401005331,5.21423647,41497.0,41493.0,0.67278806]
[1646401005529,0.01,41519.0,41501.0,0.32897692]
[1646401005530,0.25945496,41508.0,41501.0,0.32897692]
[1646401005729,0.15820228,41518.0,41509.0,0.01274946]
[1646401005730,0.18307324,41516.0,41509.0,0.01274946]
[1646401006127,0.7357,41515.0,41509.0,0.13328846]
[1646401006428,1.4,41514.0,41495.0,0.1998]
[1646401006627,0.2676232,41505.0,41496.0,0.23175386]
[1646401006881,1.73991058,41514.0,41504.0,0.01047468]
[1646401006882,0.060284,41509.0,41504.0,0.01047468]
[1646401007086,0.060284,41509.0,41504.0,0.01415376]
[1646401007284,0.33991058,41517.0,41505.0,0.01556852]
[1646401007681,0.01,41519.0,41505.0,0.01556852]
[1646401007883,0.01,41519.0,41505.0,0.07583852]
[1646401007884,0.25555485,41515.0,41505.0,0.07583852]
[1646401008082,0.25555485,41515.0,41509.0,0.23763982]
[1646401008284,0.25555485,41515.0,41509.0,0.0133062]
[1646401008482,0.25555485,41515.0,41511.0,0.01561784]
[1646401008681,0.01,41519.0,41513.0,0.120543]
[1646401008884,0.060275,41514.0,41513.0,0.120543]
[1646401009189,0.01,41519.0,41513.0,0.120543]
[1646401009589,0.169262,41522.0,41513.0,0.120543]
[1646401009784,0.5492,41524.0,41513.0,0.120543]
[1646401009985,0.5492,41524.0,41514.0,0.1998]
[1646401010183,0.21330744,41526.0,41514.0,0.1998]
[1646401010651,0.21330744,41526.0,41513.0,0.120543]
[1646401011051,0.17664576,41517.0,41513.0,0.120543]
[1646401011250,0.25778142,41516.0,41513.0,0.120543]
[1646401011450,0.25778142,41516.0,41514.0,0.060269]
[1646401011847,0.04306378,41515.0,41514.0,0.060269]
[1646401012049,0.27664576,41517.0,41514.0,0.060269]
[1646401012550,0.1,41517.0,41514.0,0.060269]
[1646401012749,0.060269,41518.0,41514.0,0.060269]
[1646401012951,1.06036337,41518.0,41514.0,0.060269]
[1646401013650,0.060269,41518.0,41514.0,0.060269]
[1646401014052,0.060261,41524.0,41514.0,0.060269]
[1646401014251,0.060261,41524.0,41514.0,0.110269]
[1646401014485,0.2620852,41526.0,41518.0,0.21995673]
[1646401014685,0.31787701,41523.0,41522.0,0.1998]
[1646401014889,0.33725309,41527.0,41522.0,0.29016516]
[1646401015086,0.02409,41527.0,41523.0,0.05]
[1646401015287,0.05526,41526.0,41524.0,0.13306477]
[1646401015487,0.34895628,41525.0,41524.0,0.13306477]
[1646401015692,0.34895628,41525.0,41522.0,0.04036516]
[1646401015693,0.7357,41524.0,41504.0,0.35655125]
[1646401015893,0.7357,41524.0,41502.0,0.20914069]
[1646401015894,0.24938165,41503.0,41502.0,0.20914069]
[1646401016087,0.0403,41522.0,41498.0,0.01491835]
[1646401016286,0.0403,41522.0,41499.0,0.01179205]
[1646401016287,0.1,41515.0,41499.0,0.01179205]
[1646401016487,0.0403,41522.0,41496.0,0.34587316]
[1646401016488,0.00616407,41498.0,41497.0,1.52841465]
[1646401016693,0.3059907,41519.0,41504.0,0.45]
[1646401016886,0.7357,41521.0,41504.0,0.01303702]
[1646401017086,0.7357,41517.0,41504.0,0.01303702]
[1646401017287,0.7357,41510.0,41504.0,0.01303702]
[1646401017493,0.2499,41511.0,41504.0,0.01303702]
[1646401017689,0.370468,41511.0,41508.0,0.060279]
[1646401018525,0.060283,41510.0,41508.0,0.060279]
[1646401018727,0.30758212,41509.0,41508.0,0.260179]
[1646401018926,1.16881592,41509.0,41508.0,0.1828]
[1646401019124,0.65578874,41509.0,41508.0,0.1828]
[1646401019324,0.40758212,41509.0,41496.0,0.25126492]
[1646401019524,0.44788212,41509.0,41496.0,0.25126492]
[1646401019725,0.1403,41509.0,41496.0,0.25126492]
[1646401019927,0.060294,41502.0,41497.0,0.060294]
[1646401020128,0.060294,41502.0,41498.0,0.21065587]
[1646401020326,0.1,41509.0,41497.0,0.120582]
[1646401020528,0.0999,41507.0,41497.0,0.060294]
[1646401020729,0.30798537,41501.0,41497.0,0.060294]
[1646401021025,0.1,41504.0,41497.0,0.060294]
[1646401021026,0.24590315,41502.0,41497.0,0.060294]
[1646401021224,0.02518634,41500.0,41497.0,0.060294]
[1646401021525,0.01447737,41498.0,41495.0,0.060304]
[1646401021725,0.02518634,41500.0,41487.0,0.36962111]
[1646401021986,0.4911,41512.0,41499.0,0.27539109]
[1646401022180,0.13508165,41518.0,41499.0,0.37539109]
[1646401022182,0.7357,41517.0,41499.0,0.37539109]
[1646401022382,0.02518386,41510.0,41500.0,0.35793096]
[1646401022583,0.060273,41517.0,41503.0,0.08763832]
[1646401022783,0.060273,41517.0,41507.0,0.15562296]
[1646401022986,0.02517808,41515.0,41506.0,0.01491835]
[1646401023183,0.4827,41528.0,41514.0,0.01491835]
[1646401023383,2.60540817,41533.0,41523.0,0.01491835]
[1646401023384,0.004,41533.0,41523.0,0.01491835]
[1646401023581,0.004,41533.0,41531.0,0.05941321]
[1646401023780,0.004,41533.0,41529.0,0.17030675]
[1646401023980,0.004,41533.0,41528.0,0.05]
[1646401024381,0.004,41533.0,41525.0,0.31195686]
[1646401024382,0.004,41533.0,41532.0,0.30192828]
[1646401024585,0.004,41533.0,41532.0,0.35192828]
[1646401024983,0.004,41533.0,41532.0,0.62608094]
[1646401025386,0.004,41533.0,41532.0,0.67608094]
[1646401026451,0.004,41533.0,41532.0,0.32213362]
[1646401026649,0.004,41533.0,41532.0,0.29232826]
[1646401026853,0.0011,41543.0,41534.0,0.366834]
[1646401027049,0.0011,41543.0,41536.0,0.366834]
[1646401027252,0.001,41547.0,41541.0,0.366834]
[1646401027452,0.001,41547.0,41539.0,0.1]
[1646401027453,0.01,41549.0,41548.0,0.05542481]
[1646401027651,0.01,41549.0,41548.0,0.44634881]
[1646401027849,0.01,41553.0,41548.0,0.7380409]
[1646401028058,0.24420385,41564.0,41552.0,1.4]
[1646401028254,0.001,41565.0,41561.0,0.07300202]
[1646401028452,0.24420385,41572.0,41561.0,0.07300202]
[1646401028453,0.19629336,41572.0,41565.0,0.02409]
[1646401028652,0.19739336,41573.0,41565.0,0.02409]
[1646401028851,0.0011,41573.0,41569.0,0.02409]
[1646401029055,0.21614942,41572.0,41570.0,0.03882384]
[1646401029251,0.21614942,41572.0,41570.0,0.01473384]
[1646401029252,0.19629336,41571.0,41570.0,0.01473384]
[1646401029497,0.19629336,41572.0,41570.0,0.01473384]
[1646401029694,0.20976943,41572.0,41570.0,0.01473384]
[1646401029894,0.0011,41573.0,41570.0,0.01473384]
[1646401031797,0.070183,41579.0,41570.0,0.01473384]
[1646401031798,0.20629336,41579.0,41571.0,0.366834]
[1646401031997,0.01,41579.0,41572.0,0.06538241]
[1646401032197,0.01,41579.0,41574.0,0.01380845]
[1646401032596,0.01,41579.0,41575.0,0.55169981]
[1646401032797,0.01,41579.0,41575.0,0.60169981]
[1646401033236,0.01,41579.0,41576.0,0.1]
[1646401033932,0.01,41579.0,41575.0,0.36399941]
[1646401034732,0.01,41579.0,41577.0,0.01441371]
[1646401034934,0.01,41579.0,41578.0,0.01001769]
[1646401035538,0.01,41579.0,41565.0,0.01299791]
[1646401035739,0.11,41579.0,41565.0,0.01299791]
[1646401035939,0.01,41579.0,41565.0,0.01299791]
[1646401036134,0.28058493,41573.0,41567.0,0.20466545]
[1646401036339,0.29418731,41574.0,41565.0,0.34119596]
[1646401036734,0.29418731,41574.0,41551.0,0.2401]
[1646401036979,0.29418731,41574.0,41559.0,0.0119863]
[1646401036980,0.33964048,41573.0,41559.0,0.0119863]
[1646401037380,0.2586788,41561.0,41559.0,0.0119863]
[1646401037581,0.33717304,41560.0,41550.0,0.31857003]
[1646401038079,0.54197848,41561.0,41550.0,0.31857003]
[1646401038080,0.54197848,41561.0,41550.0,0.01159402]
[1646401038284,0.20192254,41552.0,41540.0,0.01151567]
[1646401038481,0.20192254,41552.0,41541.0,0.01287104]
[1646401038679,0.1,41556.0,41542.0,0.01161118]
[1646401038878,0.1403,41559.0,41542.0,0.01161118]
[1646401039078,0.25426187,41550.0,41542.0,0.01161118]
[1646401039280,0.25426187,41550.0,41535.0,0.01269732]
[1646401039481,0.25426187,41550.0,41538.0,0.25012813]
[1646401039680,0.4998,41559.0,41538.0,0.25012813]
[1646401039880,0.0403,41558.0,41540.0,0.01064317]
[1646401040082,0.33717304,41557.0,41540.0,0.01064317]
[1646401040737,0.27884945,41546.0,41540.0,0.01064317]
[1646401040940,0.04818929,41542.0,41540.0,0.01064317]
[1646401041132,0.27884945,41546.0,41540.0,0.01064317]
[1646401041133,0.33717304,41541.0,41540.0,0.01300599]
[1646401041331,0.43717304,41541.0,41536.0,0.01277173]
[1646401041538,0.00689282,41539.0,41533.0,0.0011]
[1646401041734,0.00689282,41539.0,41528.0,0.0011]
[1646401041735,1.4,41536.0,41528.0,0.0011]
[1646401041931,0.37747304,41535.0,41528.0,0.0011]
[1646401042134,0.47747304,41535.0,41528.0,0.0011]
[1646401042331,0.50156304,41535.0,41528.0,0.0011]
[1646401043331,0.47747304,41535.0,41528.0,0.0011]
[1646401043536,0.06026,41533.0,41528.0,0.0011]
[1646401043734,1.15,41528.0,41527.0,0.00017707]
[1646401043932,1.48561878,41528.0,41527.0,0.00017707]
[1646401044132,0.25185498,41529.0,41527.0,0.00017707]
[1646401044382,0.58747376,41529.0,41527.0,0.00017707]
[1646401044578,0.489943,41532.0,41527.0,0.00017707]
[1646401044781,0.33561878,41532.0,41527.0,0.00017707]
[1646401045181,0.06026,41533.0,41527.0,0.01585291]
[1646401045380,0.00689282,41539.0,41528.0,0.01144111]
[1646401045381,0.4998,41538.0,41528.0,0.01144111]
[1646401045581,0.22079127,41534.0,41530.0,0.26696174]
[1646401045981,0.22079127,41534.0,41528.0,0.01144111]
[1646401046186,0.22079127,41534.0,41527.0,0.06585291]
[1646401046187,0.33561878,41533.0,41527.0,0.00017707]
[1646401046382,0.2499,41528.0,41526.0,0.001]
[1646401046685,0.57187872,41527.0,41525.0,0.13183808]
[1646401046879,0.83342846,41527.0,41526.0,0.01442441]
[1646401047081,0.63310436,41527.0,41526.0,0.01442441]
[1646401047283,0.1,41530.0,41526.0,0.01442441]
[1646401047284,0.120529,41529.0,41526.0,0.01442441]
[1646401047582,0.33561878,41531.0,41526.0,0.01442441]
[1646401047982,0.2499,41529.0,41526.0,0.01442441]
[1646401048229,0.24481988,41528.0,41526.0,0.01442441]
[1646401048429,0.33561878,41531.0,41526.0,0.01442441]
[1646401048631,0.060253,41533.0,41526.0,0.01442441]
[1646401048837,0.310143,41541.0,41535.0,0.07147826]
[1646401049036,0.24621422,41548.0,41536.0,0.01468803]
[1646401049037,0.02516722,41548.0,41536.0,0.01468803]
[1646401049233,0.41348462,41561.0,41536.0,1.11468803]
[1646401049234,0.4998,41554.0,41536.0,1.11468803]
[1646401049434,0.32871615,41546.0,41538.0,0.27461589]
[1646401049635,0.32871615,41546.0,41539.0,0.01475416]
[1646401049835,0.32871615,41546.0,41540.0,0.01207157]
[1646401051439,0.32342104,41546.0,41540.0,0.01207157]
[1646401051739,0.33245702,41545.0,41540.0,0.01207157]
[1646401051985,0.32342104,41546.0,41540.0,0.01207157]
[1646401052588,0.33245702,41545.0,41540.0,0.01207157]
[1646401053389,0.32342104,41546.0,41540.0,0.01207157]
[1646401053589,0.33245702,41545.0,41540.0,0.01207157]
[1646401053888,0.1596868,41544.0,41540.0,0.11207157]
[1646401054287,0.33245702,41545.0,41540.0,0.11207157]
[1646401054689,0.21610475,41541.0,41540.0,0.11207157]
[1646401054889,0.00929424,41539.0,41536.0,0.05]
[1646401055090,0.00929424,41539.0,41531.0,0.06283052]
[1646401055291,0.00929424,41539.0,41537.0,0.01224902]
[1646401055488,0.21803063,41539.0,41537.0,0.01224902]
[1646401055751,0.32976758,41538.0,41537.0,0.01224902]
[1646401056949,0.32976758,41538.0,41536.0,0.05]
[1646401057150,0.12978424,41539.0,41537.0,0.01128781]
[1646401057950,0.20007498,41538.0,41537.0,0.01128781]
[1646401058350,0.12978424,41539.0,41537.0,0.01128781]
[1646401058553,0.325638,41538.0,41537.0,0.01128781]
[1646401058950,0.37093547,41539.0,41537.0,0.01128781]
[1646401059150,0.12978424,41539.0,41537.0,0.01128781]
[1646401059423,0.325638,41547.0,41539.0,0.060224]
[1646401059424,0.120455,41545.0,41539.0,0.060224]
[1646401059618,0.060224,41543.0,41539.0,0.060224]
[1646401059817,0.120455,41545.0,41539.0,0.060224]
[1646401059818,0.03072781,41545.0,41540.0,0.366834]
[1646401060020,0.5753,41559.0,41540.0,0.366834]
[1646401060021,0.5753,41559.0,41541.0,2.10244248]
[1646401060218,0.5753,41559.0,41552.0,0.01258142]
[1646401060219,0.900938,41559.0,41552.0,0.01258142]
[1646401060415,0.5753,41559.0,41553.0,0.01430297]
[1646401060616,0.5753,41559.0,41553.0,0.07450997]
[1646401060816,0.060205,41558.0,41553.0,0.12450997]
[1646401061017,0.27850052,41555.0,41553.0,0.12450997]
[1646401061217,0.29304462,41562.0,41553.0,0.12450997]
[1646401061417,0.29304462,41562.0,41553.0,0.24493897]
[1646401061618,0.15,41560.0,41553.0,0.24493897]
[1646401061818,0.15,41560.0,41553.0,0.18473197]
[1646401061819,0.15610578,41554.0,41553.0,0.18473197]
[1646401062019,0.69294462,41560.0,41553.0,0.18473197]
[1646401062215,0.060212,41555.0,41553.0,0.18473197]
[1646401062417,0.060212,41555.0,41554.0,0.5076282]
[1646401062619,0.39304462,41564.0,41554.0,0.5076282]
[1646401062817,0.1,41564.0,41554.0,0.5576282]
[1646401063016,0.20199703,41563.0,41554.0,0.5576282]
[1646401063232,0.12409,41564.0,41554.0,0.5576282]
[1646401063431,0.28037149,41562.0,41554.0,0.5576282]
[1646401063830,0.28037149,41562.0,41556.0,0.06021]
[1646401064031,0.060209,41562.0,41556.0,0.06021]
[1646401064330,0.20202339,41560.0,41558.0,0.01311201]
[1646401064537,0.110209,41562.0,41557.0,0.33053815]
[1646401064736,0.110209,41562.0,41548.0,0.0294]
[1646401064737,0.060225,41555.0,41548.0,0.0294]
[1646401064930,0.060225,41555.0,41537.0,0.01470636]
[1646401064931,0.29494861,41551.0,41549.0,0.01112805]
[1646401065133,0.29494861,41551.0,41539.0,0.120459]
[1646401065434,0.28974023,41541.0,41540.0,0.01087034]
[1646401065635,0.34494861,41548.0,41540.0,0.01087034]
[1646401065636,0.180698,41543.0,41540.0,0.01087034]
[1646401065833,0.120466,41542.0,41540.0,0.01087034]
[1646401066031,0.120466,41542.0,41540.0,0.07109834]
[1646401066733,0.120466,41542.0,41539.0,0.10616472]
[1646401066982,0.120466,41542.0,41540.0,0.01252324]
[1646401067486,0.49072952,41544.0,41541.0,0.4364659]
[1646401067487,0.060232,41544.0,41541.0,0.4364659]
[1646401067685,0.060232,41544.0,41541.0,0.4864659]
[1646401067882,0.060232,41544.0,41542.0,0.180629]
[1646401068282,0.060232,41544.0,41543.0,0.53729893]
[1646401068485,0.06534128,41548.0,41544.0,0.7]
[1646401068882,0.06534128,41548.0,41543.0,0.76793793]
[1646401069081,0.29494861,41551.0,41544.0,0.06021241]
[1646401069283,0.29494861,41551.0,41546.0,0.180645]
[1646401069481,0.29494861,41551.0,41549.0,0.0294]
[1646401069482,0.35516361,41551.0,41549.0,0.0294]
[1646401069687,0.35516361,41551.0,41549.0,0.089616]
[1646401069688,0.29494861,41550.0,41549.0,0.089616]
[1646401069985,0.29494861,41550.0,41549.0,0.139616]
[1646401069986,0.34410671,41550.0,41549.0,0.139616]
[1646401070184,0.29513302,41550.0,41549.0,0.139616]
[1646401070386,0.060215,41551.0,41549.0,0.139616]
[1646401070387,0.40432171,41551.0,41549.0,0.139616]
[1646401070630,0.34410671,41550.0,41549.0,0.139616]
[1646401071034,0.34410671,41550.0,41549.0,0.0794]
[1646401071230,0.12512663,41550.0,41549.0,0.0794]
[1646401071633,0.34438638,41550.0,41549.0,0.05]
[1646401071831,0.12513369,41550.0,41549.0,0.05]
[1646401072030,0.34438704,41550.0,41549.0,0.05]
[1646401072235,0.34438704,41550.0,41548.0,0.120446]
[1646401072431,0.34438704,41550.0,41548.0,0.04438258]
[1646401073030,0.34438704,41550.0,41548.0,0.10460958]
[1646401073432,0.34438704,41549.0,41548.0,0.060227]
[1646401073833,0.34438704,41550.0,41548.0,0.060227]
[1646401074687,0.34438704,41550.0,41548.0,0.180673]
[1646401075089,0.40460204,41551.0,41548.0,0.180673]
[1646401075487,0.29516586,41549.0,41548.0,0.180673]
[1646401076090,0.060215,41551.0,41548.0,0.180673]
[1646401076091,0.29516586,41550.0,41548.0,0.180673]
[1646401076789,0.29516586,41550.0,41548.0,0.060227]
[1646401076988,0.58434398,41551.0,41547.0,0.05]
[1646401077188,0.29516586,41548.0,41546.0,0.03289832]
[1646401077395,0.060223,41548.0,41546.0,0.03289832]
[1646401077590,0.04818755,41547.0,41546.0,0.03289832]
[1646401077793,0.08771232,41547.0,41546.0,0.03289832]
[1646401078631,0.21324612,41547.0,41546.0,0.03289832]
[1646401079636,0.21324612,41547.0,41531.0,0.240916]
[1646401079637,0.880274,41546.0,41531.0,0.240916]
[1646401079837,0.41806071,41539.0,41526.0,0.240953]
[1646401080038,0.25,41542.0,41526.0,0.240953]
[1646401080039,0.3447404,41529.0,41526.0,0.240953]
[1646401080535,0.18841831,41530.0,41526.0,0.240953]
[1646401080536,0.97093884,41528.0,41526.0,0.240953]
[1646401080737,0.3447404,41527.0,41526.0,0.240953]
[1646401081437,0.10961632,41527.0,41526.0,0.240953]
[1646401081634,0.10961632,41527.0,41526.0,0.290953]
[1646401082081,0.40961632,41527.0,41526.0,0.290953]
[1646401082282,0.92472132,41527.0,41520.0,0.1998]
[1646401082482,0.92472132,41527.0,41516.0,0.0011]
[1646401082483,0.40497104,41521.0,41516.0,0.0011]
[1646401082688,0.2954393,41518.0,41516.0,0.061377]
[1646401083281,0.2954393,41519.0,41517.0,0.2694253]
[1646401083480,0.2954393,41519.0,41516.0,0.061377]
[1646401083685,0.2954393,41518.0,41516.0,0.121648]
[1646401083881,0.2954393,41518.0,41516.0,0.171648]
[1646401084383,0.2954393,41517.0,41516.0,0.111377]
[1646401084584,0.4159913,41518.0,41516.0,0.111377]
[1646401084785,0.7159913,41518.0,41516.0,0.111377]
[1646401085381,0.7159913,41518.0,41516.0,0.311177]
[1646401086032,0.3,41517.0,41516.0,0.311177]
[1646401086431,0.3,41517.0,41516.0,0.111377]
[1646401086633,0.8,41516.0,41515.0,0.02998916]
[1646401086933,0.2954393,41517.0,41513.0,0.15893512]
[1646401087133,0.21056018,41516.0,41513.0,0.15893512]
[1646401087332,0.060275,41517.0,41513.0,0.35873512]
[1646401087531,0.060275,41517.0,41514.0,0.060276]
[1646401088331,0.27515487,41516.0,41514.0,0.110276]
[1646401088532,0.060275,41517.0,41515.0,0.01314542]
[1646401088932,0.060275,41517.0,41515.0,0.19395142]
[1646401089134,0.060275,41517.0,41515.0,0.32602257]
[1646401089397,0.54975043,41524.0,41515.0,0.32602257]
[1646401089398,0.20505939,41524.0,41523.0,0.06916963]
[1646401089590,0.21851453,41532.0,41517.0,0.28739833]
[1646401089591,0.2954393,41528.0,41520.0,0.15416997]
[1646401089789,0.2954393,41528.0,41522.0,0.01119984]
[1646401089989,0.2954393,41528.0,41522.0,0.30746877]
[1646401090191,0.2954393,41528.0,41522.0,0.35746877]
[1646401090394,0.4159483,41527.0,41526.0,0.1998]
[1646401090793,0.4159257,41527.0,41526.0,0.2498]
[1646401091403,0.06025,41528.0,41527.0,0.01139378]
[1646401091592,0.06025,41528.0,41527.0,0.23660922]
[1646401091791,0.06025,41528.0,41527.0,0.28660922]
[1646401091991,0.120505,41529.0,41527.0,0.05]
[1646401091992,0.4159217,41529.0,41527.0,0.05]
[1646401092192,0.4159217,41529.0,41527.0,0.2498]
[1646401092394,0.2954167,41528.0,41527.0,0.230756]
[1646401092596,0.7357,41527.0,41525.0,0.060261]
[1646401092797,0.7357,41527.0,41512.0,0.0011]
[1646401092798,1.4,41524.0,41504.0,0.0021]
[1646401092999,1.4,41524.0,41511.0,0.17571]
[1646401093000,0.44541885,41512.0,41511.0,0.17571]
[1646401093246,0.44541885,41512.0,41497.0,1.31190272]
[1646401093247,1.41274553,41511.0,41497.0,0.001]
[1646401093446,0.0138703,41505.0,41497.0,0.001]
[1646401093743,0.0138703,41505.0,41494.0,0.003]
[1646401093744,0.060313,41503.0,41494.0,0.003]
[1646401093943,0.2409097,41499.0,41494.0,0.003]
[1646401094145,1.4,41500.0,41493.0,0.060316]
[1646401094345,1.4,41500.0,41487.0,0.120632]
[1646401094346,0.2671637,41489.0,41487.0,0.120632]
[1646401095147,1.58004204,41488.0,41483.0,0.12164]
[1646401095347,0.1,41487.0,41477.0,0.001]
[1646401095552,0.30371169,41479.0,41477.0,0.001]
[1646401095746,0.060341,41477.0,41472.0,0.0021]
[1646401095948,0.3,41476.0,41472.0,0.0021]
[1646401096144,1.35,41475.0,41467.0,0.2494134]
[1646401096346,0.1,41474.0,41469.0,0.060342]
[1646401096543,0.3,41473.0,41469.0,0.060342]
[1646401096744,0.1,41474.0,41469.0,0.060342]
[1646401097186,0.1,41474.0,41468.0,0.001]
[1646401097187,0.30158543,41472.0,41468.0,0.001]
[1646401097383,0.47652835,41472.0,41468.0,0.001]
[1646401097583,0.47652835,41472.0,41468.0,0.2009]
[1646401097784,1.5,41471.0,41469.0,0.1998]
[1646401097986,0.3,41470.0,41457.0,1.31200272]
[1646401098191,0.3,41470.0,41458.0,0.120717]
[1646401098192,0.06036,41460.0,41458.0,0.120717]
[1646401098989,0.06036,41460.0,41458.0,0.115717]
[1646401099186,0.06036,41460.0,41459.0,0.23851518]
[1646401099588,0.181048,41472.0,41460.0,1.4]
[1646401099788,0.2499,41482.0,41468.0,0.07012024]
[1646401099988,0.2902,41482.0,41466.0,0.144747]
[1646401100288,0.2902,41482.0,41471.0,0.02409]
[1646401100494,0.05,41498.0,41479.0,0.15]
[1646401100495,0.3,41490.0,41479.0,0.15]
[1646401100750,0.5522,41494.0,41485.0,0.06031]
[1646401100941,0.05,41498.0,41485.0,0.06031]
[1646401101141,0.120602,41494.0,41490.0,0.1999]
[1646401101339,0.120602,41494.0,41491.0,0.01477833]
[1646401101545,0.32419348,41497.0,41491.0,0.01477833]
[1646401101739,0.32419348,41497.0,41490.0,0.14405136]
[1646401101940,0.32419348,41497.0,41494.0,0.0716628]
[1646401102139,0.32419348,41497.0,41494.0,0.0113628]
[1646401102140,0.120601,41495.0,41494.0,0.0113628]
[1646401102338,0.120601,41495.0,41489.0,0.1809]
[1646401102538,0.20037172,41491.0,41489.0,0.1809]
[1646401102739,0.120601,41495.0,41489.0,0.1809]
[1646401103139,0.120601,41495.0,41493.0,0.0939]
[1646401103344,0.120601,41495.0,41494.0,0.05]
[1646401103743,0.025,41510.0,41496.0,0.060298]
[1646401103941,0.241207,41511.0,41499.0,0.0597036]
[1646401104142,0.4853,41512.0,41499.0,0.0597036]
[1646401104143,0.4853,41512.0,41501.0,0.120557]
[1646401104596,0.2499,41513.0,41501.0,0.120557]
[1646401104795,0.5501,41517.0,41502.0,0.26229772]
[1646401104995,0.5501,41517.0,41508.0,0.120565]
[1646401104996,0.060284,41514.0,41508.0,0.120565]
[1646401105302,0.060284,41514.0,41511.0,0.120576]
[1646401105303,0.3,41513.0,41511.0,0.120576]
[1646401105495,0.1255338,41512.0,41511.0,0.170576]
[1646401105697,0.4255338,41512.0,41511.0,0.170576]
[1646401105899,0.060297,41509.0,41499.0,0.25215634]
[1646401106095,0.3,41508.0,41499.0,0.25215634]
[1646401106295,0.27338611,41507.0,41499.0,0.25215634]
[1646401106494,0.27338611,41507.0,41502.0,0.060297]
[1646401106697,0.120598,41506.0,41495.0,0.00543146]
[1646401106895,0.120598,41506.0,41501.0,0.060296]
[1646401106896,0.3,41505.0,41501.0,0.060296]
[1646401107096,0.120598,41506.0,41501.0,0.060296]
[1646401107097,0.14577785,41506.0,41501.0,0.060296]
[1646401107396,0.360299,41505.0,41501.0,0.060296]
[1646401107598,0.060299,41505.0,41501.0,0.07455153]
[1646401107798,0.060299,41505.0,41502.0,0.060297]
[1646401107799,0.360299,41505.0,41502.0,0.060297]
[1646401107997,0.060299,41505.0,41502.0,0.110297]
[1646401108234,0.3,41508.0,41502.0,0.110297]
[1646401108443,0.3,41508.0,41503.0,0.120579]
[1646401109036,0.2995571,41508.0,41503.0,0.120579]
[1646401109534,0.060299,41505.0,41503.0,0.120579]
[1646401109733,0.120598,41506.0,41503.0,0.120579]
[1646401110435,0.360299,41505.0,41503.0,0.120579]
[1646401110644,0.3,41504.0,41503.0,0.120579]
[1646401110938,0.3,41504.0,41500.0,0.180891]
[1646401110939,1.54567738,41504.0,41500.0,0.180891]
[1646401111140,0.8612338,41501.0,41500.0,0.180891]
[1646401111334,0.120635,41500.0,41491.0,0.060319]
[1646401111537,0.1403,41504.0,41491.0,0.060319]